bitfinex/quotes_BTCUSD_20251007
["timestamp","ask_amount","ask_price","bid_price","bid_amount"]
[1759859180808,0.00261852,121560.0,121550.0,0.48036703]
[1759859181016,0.00261852,121560.0,121550.0,0.46199104]
[1759859181249,0.00261852,121560.0,121550.0,0.69527104]
[1759859181463,0.00261852,121560.0,121550.0,0.61214898]
[1759859181678,0.00261852,121560.0,121550.0,0.37886898]
[1759859181894,0.00261852,121560.0,121550.0,0.40837646]
[1759859182099,0.00261852,121560.0,121550.0,0.65029446]
[1759859182329,0.00261852,121560.0,121550.0,0.62078698]
[1759859182533,0.00261852,121560.0,121550.0,0.65029577]
[1759859182961,0.77675629,121560.0,121550.0,0.15639679]
[1759859183171,0.16714632,121560.0,121550.0,0.36963679]
[1759859183390,0.16714632,121560.0,121550.0,0.106848]
[1759859183608,0.77675629,121560.0,121550.0,0.032498]
[1759859183824,0.77675629,121560.0,121550.0,0.052198]
[1759859184034,0.16714632,121560.0,121550.0,0.082998]
[1759859184240,0.80996246,121560.0,121550.0,0.102758]
[1759859184444,0.80996246,121560.0,121550.0,0.101758]
[1759859184648,0.81096246,121560.0,121550.0,0.101758]
[1759859185103,0.20135249,121560.0,121550.0,0.101758]
[1759859185325,0.16814632,121560.0,121550.0,0.26629934]
[1759859185534,0.16814632,121560.0,121550.0,0.33815934]
[1759859185735,0.00361852,121560.0,121550.0,0.33815934]
[1759859185972,0.16814632,121560.0,121550.0,0.33815934]
[1759859186159,0.16814632,121560.0,121550.0,0.36766813]
[1759859186368,0.00361852,121560.0,121550.0,0.36766813]
[1759859186571,0.16814632,121560.0,121550.0,0.20312679]
[1759859186783,0.16814632,121560.0,121550.0,0.33815934]
[1759859187432,0.16814632,121560.0,121550.0,0.173618]
[1759859187648,0.20188178,121560.0,121550.0,0.355078]
[1759859187856,0.20188178,121560.0,121550.0,0.028498]
[1759859187857,0.81149175,121560.0,121550.0,0.028498]
[1759859189396,0.16814632,121560.0,121550.0,0.173618]
[1759859189604,0.16814632,121560.0,121550.0,0.121798]
[1759859190678,0.16814632,121560.0,121550.0,0.170218]
[1759859192214,0.16814632,121560.0,121550.0,0.33475934]
[1759859192447,0.00361852,121560.0,121550.0,0.33475934]
[1759859192666,0.00361852,121560.0,121550.0,0.36426813]
[1759859192971,0.00361852,121560.0,121550.0,0.40852577]
[1759859193172,0.00361852,121560.0,121550.0,0.36426813]
[1759859195582,0.00361852,121560.0,121550.0,0.40852577]
[1759859197016,0.00361852,121560.0,121550.0,0.48852257]
[1759859197236,0.40228531,121580.0,121560.0,0.1645278]
[1759859197438,0.16451542,121570.0,121560.0,0.2952978]
[1759859197658,0.16451542,121570.0,121560.0,0.3297878]
[1759859197863,0.16950903,121580.0,121560.0,0.3297878]
[1759859198042,0.16451427,121570.0,121560.0,0.2474378]
[1759859198244,0.16451427,121570.0,121560.0,0.3297878]
[1759859199408,0.16651427,121570.0,121560.0,0.3297878]
[1759859199846,0.16651427,121570.0,121560.0,0.16526]
[1759859200080,0.16851427,121570.0,121560.0,0.3297878]
[1759859200520,0.2256446,121570.0,121560.0,0.3297878]
[1759859200936,0.2256446,121570.0,121560.0,0.11684]
[1759859201153,0.2256446,121570.0,121560.0,0.02069]
[1759859201343,0.83525457,121570.0,121560.0,0.02069]
[1759859201554,0.83525457,121570.0,121560.0,0.03944]
[1759859202170,0.2256446,121570.0,121560.0,0.07206]
[1759859203141,0.22615808,121570.0,121560.0,0.07206]
[1759859203535,0.16902775,121570.0,121560.0,0.07206]
[1759859204562,0.40230775,121570.0,121560.0,0.07206]
[1759859206317,0.40230775,121570.0,121560.0,0.09191]
[1759859206530,0.40230775,121570.0,121560.0,0.11185]
[1759859206733,0.00451348,121570.0,121560.0,0.3247678]
[1759859207352,0.00451348,121570.0,121560.0,0.35427659]
[1759859207780,0.16902775,121570.0,121560.0,0.58755659]
[1759859208368,0.00451348,121570.0,121560.0,0.58755659]
[1759859208595,0.16902775,121570.0,121560.0,0.58755659]
[1759859209084,0.00451348,121570.0,121560.0,0.58755659]
[1759859209680,0.16902775,121570.0,121560.0,0.58755659]
[1759859210325,0.00451348,121570.0,121560.0,0.63181423]
[1759859210527,0.00451348,121570.0,121560.0,0.68230224]
[1759859210740,0.00451348,121570.0,121560.0,0.60230544]
[1759859211356,0.00451348,121570.0,121560.0,0.36902544]
[1759859211600,0.00451348,121570.0,121560.0,0.60230544]
[1759859211787,0.00451348,121570.0,121560.0,0.60238544]
[1759859213767,0.00451348,121570.0,121560.0,0.65587567]
[1759859215043,0.00451348,121570.0,121560.0,0.60238544]
[1759859215476,0.00451348,121570.0,121560.0,0.36902544]
[1759859215809,0.00451348,121570.0,121560.0,0.60234544]
[1759859217375,0.77863772,121570.0,121560.0,0.08369764]
[1759859217571,0.77863772,121570.0,121560.0,0.03944]
[1759859218255,0.16902775,121570.0,121560.0,0.03944]
[1759859218600,0.77863772,121570.0,121560.0,0.03944]
[1759859219000,1.09511978,121570.0,121560.0,0.02069]
[1759859219219,0.1645278,121560.0,121550.0,0.02824719]
[1759859219392,0.85725983,121560.0,121550.0,0.02824719]
[1759859220290,0.48100986,121560.0,121550.0,0.12037719]
[1759859221191,0.47665014,121560.0,121550.0,0.12037719]
[1759859222268,1.04626011,121560.0,121550.0,0.02958719]
[1759859222673,0.43665014,121560.0,121550.0,0.05016719]
[1759859222982,1.04626011,121560.0,121550.0,0.05016719]
[1759859223793,0.81290011,121560.0,121550.0,0.05016719]
[1759859223915,0.43661014,121560.0,121550.0,0.17363719]
[1759859224591,0.43657014,121560.0,121550.0,0.12220719]
[1759859224962,0.43657014,121560.0,121550.0,0.17363719]
[1759859225384,0.43657014,121560.0,121550.0,0.12220719]
[1759859227191,0.43657014,121560.0,121550.0,0.02958719]
[1759859227401,1.04618011,121560.0,121550.0,0.02958719]
[1759859227608,1.04618011,121560.0,121550.0,0.05016719]
[1759859228021,1.04618011,121560.0,121550.0,0.02958719]
[1759859228425,1.04618011,121560.0,121550.0,0.05016719]
[1759859230600,0.81290011,121560.0,121550.0,0.05016719]
[1759859230801,1.04622011,121560.0,121550.0,0.08415719]
[1759859231010,0.81290011,121560.0,121550.0,0.08415719]
[1759859231217,0.43661014,121560.0,121550.0,0.10357719]
[1759859231416,1.04622011,121560.0,121550.0,0.10357719]
[1759859231618,1.04622011,121560.0,121550.0,0.12220719]
[1759859232014,0.43661014,121560.0,121550.0,0.12220719]
[1759859232218,0.43661014,121560.0,121550.0,0.17363719]
[1759859232637,0.20329014,121560.0,121550.0,0.17363719]
[1759859232980,0.43661014,121560.0,121550.0,0.17363719]
[1759859233139,0.43661014,121560.0,121550.0,0.12220719]
[1759859235134,1.04622011,121560.0,121550.0,0.06958719]
[1759859235362,1.04622011,121560.0,121550.0,0.05016719]
[1759859236604,1.04622011,121560.0,121550.0,0.08415719]
[1759859236824,1.04622011,121560.0,121550.0,0.10357719]
[1759859237452,1.05051339,121560.0,121550.0,0.10357719]
[1759859237656,0.81719339,121560.0,121550.0,0.10357719]
[1759859237869,0.44090342,121560.0,121550.0,0.12220719]
[1759859238091,1.05051339,121560.0,121550.0,0.12220719]
[1759859238579,0.84722325,121560.0,121550.0,0.12220719]
[1759859238837,1.01175105,121560.0,121550.0,0.12220719]
[1759859239038,0.40214108,121560.0,121550.0,0.12220719]
[1759859240281,1.01175105,121560.0,121550.0,0.12220719]
[1759859242403,0.00429328,121560.0,121550.0,0.33817853]
[1759859246723,0.00429328,121560.0,121550.0,0.42369853]
[1759859247333,0.00429328,121560.0,121550.0,0.55107823]
[1759859248829,0.00429328,121560.0,121550.0,0.46555823]
[1759859249025,0.00429328,121560.0,121550.0,0.61571617]
[1759859250269,0.77910447,121600.0,121590.0,3.73880983]
[1759859250465,2.130893,121600.0,121590.0,3.73880983]
[1759859250667,2.15988569,121600.0,121590.0,3.73880983]
[1759859250916,2.18114756,121600.0,121590.0,3.73880983]
[1759859251325,2.18814756,121600.0,121590.0,3.73880983]
[1759859251529,2.19314756,121600.0,121590.0,3.73980983]
[1759859252142,1.29631589,121600.0,121590.0,3.75834983]
[1759859252347,0.68678317,121600.0,121590.0,3.83099983]
[1759859252551,1.52959589,121600.0,121590.0,3.83099983]
[1759859252837,0.26366111,121600.0,121590.0,3.85082983]
[1759859252970,0.26366111,121600.0,121590.0,4.06463704]
[1759859253374,0.09096299,121600.0,121590.0,4.29791704]
[1759859254207,0.07896299,121600.0,121590.0,4.37691384]
[1759859254411,0.07263664,121600.0,121590.0,4.29691704]
[1759859254617,0.07563664,121600.0,121590.0,4.29791704]
[1759859255016,0.07263664,121600.0,121590.0,4.29691704]
[1759859255229,0.01098369,121600.0,121590.0,4.29691704]
[1759859255465,0.01298369,121600.0,121590.0,4.37691384]
[1759859255827,0.00798369,121600.0,121590.0,4.37691384]
[1759859256157,0.01098369,121600.0,121590.0,4.37691384]
[1759859256353,0.01098369,121600.0,121590.0,4.29691704]
[1759859257516,0.00669104,121600.0,121590.0,4.29691704]
[1759859258565,0.00669104,121600.0,121590.0,4.3800391]
[1759859258983,0.00669104,121600.0,121590.0,4.4867591]
[1759859259206,0.00669104,121600.0,121590.0,4.59144198]
[1759859259416,0.00369104,121600.0,121590.0,5.25236198]
[1759859259826,0.00369104,121600.0,121590.0,5.25436198]
[1759859260031,0.00369104,121600.0,121590.0,5.25236198]
[1759859260240,0.00369104,121600.0,121590.0,4.59744198]
[1759859260477,0.00369104,121600.0,121590.0,4.96049962]
[1759859260478,0.00169104,121600.0,121590.0,4.96049962]
[1759859260693,0.00169104,121600.0,121590.0,4.64169962]
[1759859260914,0.00169104,121600.0,121590.0,4.96049962]
[1759859261540,0.00169104,121600.0,121590.0,4.64469962]
[1759859261766,0.00169104,121600.0,121590.0,4.96349962]
[1759859261978,0.00169104,121600.0,121590.0,4.64469962]
[1759859262184,0.00169104,121600.0,121590.0,4.96345962]
[1759859262606,0.00169104,121600.0,121590.0,4.87793962]
[1759859262810,0.00169104,121600.0,121590.0,4.96345962]
[1759859264771,0.00169104,121600.0,121590.0,4.88346282]
[1759859265195,0.00169104,121600.0,121590.0,5.22550282]
[1759859265639,0.00169104,121600.0,121590.0,4.56470282]
[1759859265843,0.00169104,121600.0,121590.0,5.22550282]
[1759859266054,0.00169104,121600.0,121590.0,5.25565472]
[1759859266268,0.00169104,121600.0,121590.0,5.33565152]
[1759859266825,0.00169104,121600.0,121590.0,5.25009152]
[1759859267022,0.00169104,121600.0,121590.0,5.33557152]
[1759859267447,0.00169104,121600.0,121590.0,4.67185152]
[1759859267858,0.00269104,121600.0,121590.0,4.67585152]
[1759859268069,0.00269104,121600.0,121590.0,4.63969962]
[1759859268292,0.00269104,121600.0,121590.0,4.55970282]
[1759859268522,0.00269104,121600.0,121590.0,4.4755191]
[1759859268736,0.00269104,121600.0,121590.0,4.4755591]
[1759859268944,0.00269104,121600.0,121590.0,4.30695704]
[1759859269378,0.00269104,121600.0,121590.0,4.30099704]
[1759859269584,0.16716472,121600.0,121590.0,4.08718983]
[1759859269928,0.03485366,121600.0,121590.0,4.30391704]
[1759859270130,0.00569104,121600.0,121590.0,4.29991704]
[1759859271175,0.00569104,121600.0,121590.0,4.3830391]
[1759859271400,0.00169104,121600.0,121590.0,4.3830391]
[1759859271762,0.00369104,121600.0,121590.0,4.3830391]
[1759859272546,0.00369104,121600.0,121590.0,4.1496791]
[1759859272759,0.00369104,121600.0,121590.0,4.4685591]
[1759859273178,0.00369104,121600.0,121590.0,4.06655704]
[1759859273384,0.00369104,121600.0,121590.0,4.38539704]
[1759859275413,0.00369104,121600.0,121590.0,4.30003704]
[1759859275620,0.16816472,121600.0,121590.0,3.79654983]
[1759859275810,0.20142726,121600.0,121590.0,4.03002983]
[1759859276002,0.20142726,121600.0,121590.0,4.06535983]
[1759859276429,0.20142726,121600.0,121590.0,3.79654983]
[1759859276632,0.16816472,121600.0,121590.0,3.73880983]
[1759859276832,0.77769744,121600.0,121590.0,3.97232983]
[1759859277470,0.77769744,121600.0,121590.0,3.73880983]
[1759859277678,1.2309714,121600.0,121590.0,3.73880983]
[1759859277879,1.2309714,121600.0,121590.0,4.30240704]
[1759859277880,0.00369104,121600.0,121590.0,4.30240704]
[1759859278710,0.00369104,121600.0,121590.0,4.31104304]
[1759859279114,0.00369104,121600.0,121590.0,4.4796451]
[1759859280428,0.00369104,121600.0,121590.0,4.52390274]
[1759859281244,0.00369104,121600.0,121590.0,4.20490274]
[1759859281446,0.00369104,121600.0,121590.0,4.52438274]
[1759859281991,0.00169104,121600.0,121590.0,4.52438274]
[1759859282193,0.00269104,121600.0,121590.0,4.52438274]
[1759859282598,0.00269104,121600.0,121590.0,4.60437954]
[1759859282810,0.00269104,121600.0,121590.0,4.86438274]
[1759859282970,0.00269104,121600.0,121590.0,4.8201251]
[1759859283179,0.00269104,121600.0,121590.0,4.87914021]
[1759859283620,0.00169104,121600.0,121590.0,4.87914021]
[1759859283957,0.00169104,121600.0,121590.0,4.88014021]
[1759859284181,0.00169104,121600.0,121590.0,4.96013701]
[1759859288342,0.00169104,121600.0,121590.0,4.56066021]
[1759859288686,0.00169104,121600.0,121590.0,4.88010021]
[1759859288898,0.00169104,121600.0,121590.0,4.29137192]
[1759859289095,0.00169104,121600.0,121590.0,4.52529192]
[1759859289305,0.00169104,121600.0,121590.0,4.52537192]
[1759859289967,0.00169104,121600.0,121590.0,4.52437192]
[1759859291158,0.00369104,121600.0,121590.0,4.52437192]
[1759859295076,0.00369104,121600.0,121590.0,4.20489192]
[1759859295272,0.16816472,121600.0,121590.0,3.86079583]
[1759859295451,0.20142741,121600.0,121590.0,4.09467583]
[1759859297096,0.16816472,121600.0,121590.0,3.74744583]
[1759859297299,0.51245659,121600.0,121590.0,3.98136583]
[1759859298118,0.57550934,121600.0,121590.0,4.09853583]
[1759859300063,0.57550934,121600.0,121590.0,4.07798583]
[1759859300271,0.57550934,121600.0,121590.0,4.04251583]
[1759859300467,0.57550934,121600.0,121590.0,4.07798583]
[1759859303327,0.57550934,121600.0,121590.0,3.80859583]
[1759859303498,0.57550934,121600.0,121590.0,3.98128583]
[1759859304077,0.57550934,121600.0,121590.0,3.74744583]
[1759859304455,0.57550934,121600.0,121590.0,3.98124583]
[1759859304631,0.57550934,121600.0,121590.0,3.74744583]
[1759859304835,0.57550934,121600.0,121590.0,3.98124583]
[1759859307641,0.57550934,121600.0,121590.0,4.26021304]
[1759859307642,0.07103566,121600.0,121590.0,4.26021304]
[1759859307843,0.07103566,121600.0,121590.0,4.31117304]
[1759859308082,0.23550934,121600.0,121590.0,4.31117304]
[1759859308514,0.23550934,121600.0,121590.0,4.14668583]
[1759859309234,0.23550934,121600.0,121590.0,3.91288583]
[1759859309449,0.6155065,121600.0,121590.0,3.74744583]
[1759859309875,0.6155065,121600.0,121590.0,3.98160583]
[1759859310290,0.93078856,121600.0,121590.0,3.74744583]
[1759859310498,0.93178856,121600.0,121590.0,3.74744583]
[1759859310704,0.93378856,121600.0,121590.0,3.74744583]
[1759859311146,0.93278856,121600.0,121590.0,3.74744583]
[1759859311986,0.93078856,121600.0,121590.0,3.74744583]
[1759859312214,0.93378856,121600.0,121590.0,3.74744583]
[1759859312419,0.93678856,121600.0,121590.0,3.74744583]
[1759859313365,0.8967914,121600.0,121590.0,3.74744583]
[1759859314582,0.8967114,121600.0,121590.0,3.74744583]
[1759859314816,0.57950934,121600.0,121590.0,3.79951583]
[1759859315033,0.57950934,121600.0,121590.0,3.84099583]
[1759859315247,0.57950934,121600.0,121590.0,3.98152583]
[1759859315844,0.57950934,121600.0,121590.0,4.00198583]
[1759859316210,0.57950934,121600.0,121590.0,3.98152583]
[1759859317002,0.57950934,121600.0,121590.0,3.74744583]
[1759859317347,0.57950934,121600.0,121590.0,3.98152583]
[1759859317892,0.81350934,121600.0,121590.0,3.98152583]
[1759859318762,0.8966314,121600.0,121590.0,3.74744583]
[1759859319495,0.9267833,121600.0,121590.0,3.74744583]
[1759859327029,2.00000861,121600.0,121590.0,3.74744583]
[1759859327439,2.03302948,121600.0,121590.0,3.74744583]
[1759859327638,0.99217702,121600.0,121590.0,3.74744583]
[1759859327851,0.98617702,121600.0,121590.0,3.74744583]
[1759859328050,0.99117702,121600.0,121590.0,3.74844583]
[1759859328395,0.99817702,121600.0,121590.0,3.74844583]
[1759859329313,0.97347665,121600.0,121590.0,3.74844583]
[1759859330359,0.95580052,121600.0,121590.0,3.74844583]
[1759859331462,0.94033578,121600.0,121590.0,3.74844583]
[1759859331643,0.9326633,121600.0,121590.0,3.74844583]
[1759859335506,0.94033014,121600.0,121590.0,3.74844583]
[1759859338724,0.94032742,121600.0,121590.0,3.74844583]
[1759859340555,0.70644742,121600.0,121590.0,3.74844583]
[1759859340733,0.94028742,121600.0,121590.0,3.74844583]
[1759859341375,1.56502932,121600.0,121590.0,3.74844583]
[1759859341588,1.58269174,121600.0,121590.0,3.74844583]
[1759859341799,0.973281,121600.0,121590.0,3.74844583]
[1759859342045,1.58269174,121600.0,121590.0,3.74844583]
[1759859342279,0.739441,121600.0,121590.0,3.74844583]
[1759859342453,1.66817174,121600.0,121590.0,3.74844583]
[1759859342671,1.34885174,121600.0,121590.0,3.74844583]
[1759859342983,1.66829174,121600.0,121590.0,3.74844583]
[1759859343388,1.058881,121600.0,121590.0,3.74844583]
[1759859343566,1.66829174,121600.0,121590.0,3.74844583]
[1759859345068,1.058881,121600.0,121590.0,3.74844583]
[1759859346037,1.66825174,121600.0,121590.0,3.74844583]
[1759859346257,0.739441,121600.0,121590.0,3.74844583]
[1759859346527,1.058841,121600.0,121590.0,3.74844583]
[1759859346736,1.66825174,121600.0,121590.0,3.74844583]
[1759859347152,1.65292058,121600.0,121590.0,3.74844583]
[1759859348083,2.08730372,121600.0,121590.0,3.31248994]
[1759859348292,2.77107444,121600.0,121590.0,3.08868926]
[1759859348516,2.26166368,121600.0,121590.0,2.92253955]
[1759859348760,2.26166368,121600.0,121590.0,2.72111941]
[1759859349170,2.26166368,121600.0,121590.0,2.7168266]
[1759859349387,2.86678255,121600.0,121590.0,2.30457077]
[1759859349596,2.86678255,121600.0,121590.0,2.23849568]
[1759859349802,2.86678255,121600.0,121590.0,2.0574357]
[1759859350001,2.25737181,121600.0,121590.0,2.0574357]
[1759859350436,2.26166501,121600.0,121590.0,2.0574357]
[1759859351803,0.70644875,121600.0,121590.0,2.0574357]
[1759859352013,0.41415273,121600.0,121590.0,2.0574357]
[1759859352222,0.98823273,121600.0,121590.0,2.0574357]
[1759859352422,0.67838463,121600.0,121590.0,2.0574357]
[1759859352634,1.01838463,121600.0,121590.0,2.0574357]
[1759859352830,0.59286463,121600.0,121590.0,2.0574357]
[1759859353051,0.93286463,121600.0,121590.0,2.0574357]
[1759859353718,0.59286463,121600.0,121590.0,2.0574357]
[1759859353894,0.93286463,121600.0,121590.0,2.0574357]
[1759859355630,0.69878463,121600.0,121590.0,2.0574357]
[1759859355826,0.93286463,121600.0,121590.0,2.0574357]
[1759859361503,0.66863273,121600.0,121590.0,2.0772357]
[1759859361719,0.32863273,121600.0,121590.0,2.1480257]
[1759859361861,0.56255273,121600.0,121590.0,2.1480257]
[1759859362284,0.56255273,121600.0,121590.0,2.1682157]
[1759859362917,0.32863273,121600.0,121590.0,2.1682157]
[1759859363126,0.56255273,121600.0,121590.0,2.1682157]
[1759859364120,0.33333526,121600.0,121590.0,2.1682157]
[1759859364322,0.49780894,121600.0,121590.0,2.1682157]
[1759859364493,0.49780894,121600.0,121590.0,2.1480257]
[1759859364733,0.49780894,121600.0,121590.0,2.1160157]
[1759859366780,0.49780894,121600.0,121590.0,2.2912757]
[1759859366982,0.55979488,121600.0,121590.0,2.2912757]
[1759859367584,1.1690322,121600.0,121590.0,2.0574357]
[1759859368151,2.14842142,121600.0,121590.0,2.0574357]
[1759859368800,2.6944925,121600.0,121590.0,2.0574357]
[1759859369033,2.70215306,121600.0,121590.0,2.0574357]
[1759859369234,1.47667842,121600.0,121590.0,2.0574357]
[1759859369435,2.69615306,121600.0,121590.0,2.0574357]
[1759859369851,2.69615306,121600.0,121590.0,2.0564357]
[1759859369852,2.69015306,121600.0,121590.0,2.0564357]
[1759859370059,2.69715306,121600.0,121590.0,2.0574357]
[1759859370595,2.69315306,121600.0,121590.0,2.0564357]
[1759859371154,2.69915306,121600.0,121590.0,2.0574357]
[1759859371927,3.30839038,121600.0,121590.0,2.0574357]
[1759859372557,2.69915306,121600.0,121590.0,2.0574357]
[1759859373958,2.71680517,121600.0,121590.0,2.0574357]
[1759859374934,3.35074453,121600.0,121590.0,2.0574357]
[1759859375148,1.52303257,121600.0,121590.0,2.0574357]
[1759859375348,2.74150721,121600.0,121590.0,2.0574357]
[1759859376226,1.38979657,121600.0,121590.0,2.0574357]
[1759859376458,2.49403621,121600.0,121590.0,2.0574357]
[1759859376874,1.27556157,121600.0,121590.0,2.0574357]
[1759859377080,2.49403621,121600.0,121590.0,2.0574357]
[1759859377841,2.55485417,121600.0,121590.0,2.0574357]
[1759859378038,2.29627721,121600.0,121590.0,2.0574357]
[1759859379607,2.74760021,121600.0,121590.0,2.0574357]
[1759859379768,6.84737749,121600.0,121590.0,1.60800252]
[1759859379967,6.89769049,121600.0,121590.0,1.44640238]
[1759859380218,6.89769049,121600.0,121590.0,1.42172403]
[1759859380219,6.68002049,121600.0,121590.0,1.42172403]
[1759859380379,6.68068249,121600.0,121590.0,1.39704568]
[1759859380579,6.49068649,121600.0,121590.0,1.39704568]
[1759859381027,3.07987449,121600.0,121590.0,1.39704568]
[1759859381211,6.53283249,121600.0,121590.0,1.39704568]
[1759859381418,6.06618249,121600.0,121590.0,1.39704568]
[1759859381667,6.04674249,121600.0,121590.0,1.39704568]
[1759859381993,6.71031449,121600.0,121590.0,1.39704568]
[1759859382305,6.82473049,121600.0,121590.0,1.39704568]
[1759859382490,5.79776649,121600.0,121590.0,1.39704568]
[1759859382693,6.95670149,121600.0,121590.0,1.37236733]
[1759859382898,3.42195449,121600.0,121590.0,1.34768898]
[1759859383168,6.60188708,121600.0,121590.0,1.34768898]
[1759859383384,4.92931208,121600.0,121590.0,1.34768898]
[1759859383559,5.25094608,121600.0,121590.0,1.34768898]
[1759859383788,5.36619908,121600.0,121590.0,1.34768898]
[1759859383969,5.50649308,121600.0,121590.0,1.34768898]
[1759859384147,5.36692108,121600.0,121590.0,1.34768898]
[1759859384530,3.49244378,121600.0,121590.0,1.34768898]
[1759859384733,2.57682969,121600.0,121590.0,1.34768898]
[1759859384928,2.49142969,121600.0,121590.0,1.34768898]
[1759859385132,2.70194965,121600.0,121590.0,1.34768898]
[1759859387391,2.38254965,121600.0,121590.0,1.34768898]
[1759859387596,2.60190967,121600.0,121590.0,1.34768898]
[1759859387823,2.70190965,121600.0,121590.0,1.34768898]
[1759859388424,2.70186965,121600.0,121590.0,1.34768898]
[1759859389286,2.34306969,121600.0,121590.0,1.34768898]
[1759859389535,2.57686969,121600.0,121590.0,1.34768898]
[1759859389728,2.67686967,121600.0,121590.0,1.34768898]
[1759859389943,2.69452141,121600.0,121590.0,1.34768898]
[1759859390184,2.69452141,121600.0,121590.0,0.74428717]
[1759859390185,3.0877506,121600.0,121590.0,0.74428717]
[1759859390380,9.91546256,121600.0,121590.0,0.61726676]
[1759859390601,9.91546256,121600.0,121590.0,0.45169311]
[1759859390816,9.91546256,121600.0,121590.0,0.23131491]
[1759859391033,4.91546256,121600.0,121590.0,0.10763831]
[1759859391250,8.0877506,121600.0,121590.0,0.08295942]
[1759859391385,8.0877506,121600.0,121590.0,0.05828053]
[1759859391603,8.0877506,121600.0,121590.0,1e-08]
[1759859391841,0.16451427,121570.0,121560.0,0.0008591]
[1759859392056,0.29699633,121570.0,121560.0,0.0008591]
[1759859392269,1.14011365,121570.0,121560.0,0.0008591]
[1759859392529,1.16481923,121570.0,121560.0,0.0008591]
[1759859392753,1.1691129,121570.0,121560.0,0.0008591]
[1759859393085,1.1711129,121570.0,121560.0,0.0048591]
[1759859393289,0.9372329,121570.0,121560.0,0.0048591]
[1759859393508,0.56183558,121570.0,121560.0,0.0048591]
[1759859393750,1.1710729,121570.0,121560.0,0.0048591]
[1759859396288,1.18047559,121570.0,121560.0,0.0048591]
[1759859398534,0.94663559,121570.0,121560.0,0.0048591]
[1759859398839,1.18039559,121570.0,121560.0,0.0048591]
[1759859400823,0.57115827,121570.0,121560.0,0.0048591]
[1759859401022,1.18039559,121570.0,121560.0,0.0048591]
[1759859401682,1.78963291,121570.0,121560.0,0.0048591]
[1759859401951,1.85279532,121570.0,121560.0,0.0048591]
[1759859402170,2.55711782,121570.0,121560.0,0.0048591]
[1759859402399,3.53135512,121570.0,121560.0,0.0048591]
[1759859402642,0.16458196,121520.0,121510.0,0.08794503]
[1759859403472,0.16458196,121520.0,121500.0,0.23973943]
[1759859403682,0.16458196,121520.0,121510.0,0.001]
[1759859403904,0.22664574,121520.0,121510.0,0.001]
[1759859404113,0.83588306,121520.0,121510.0,0.001]
[1759859404355,0.83588306,121520.0,121500.0,0.47396315]
[1759859404565,0.22764574,121520.0,121500.0,0.47396315]
[1759859404751,0.22764574,121520.0,121510.0,0.006]
[1759859404965,0.22764574,121520.0,121500.0,0.49760315]
[1759859405212,0.77383282,121510.0,121500.0,0.06740372]
[1759859405428,0.77383282,121510.0,121500.0,0.04537372]
[1759859405627,0.1645955,121510.0,121500.0,0.08498372]
[1759859405802,1.16209372,121520.0,121500.0,0.08498372]
[1759859406010,0.1645955,121510.0,121500.0,0.08498372]
[1759859406529,0.1645955,121510.0,121500.0,0.10862372]
[1759859406759,0.1645955,121510.0,121500.0,0.11062372]
[1759859407149,0.1645955,121510.0,121500.0,0.11562372]
[1759859407607,0.1645955,121510.0,121500.0,0.11362372]
[1759859407815,0.1655955,121510.0,121500.0,0.09198372]
[1759859408737,0.1655955,121510.0,121500.0,0.05237372]
[1759859409143,0.1655955,121510.0,121500.0,0.05699713]
[1759859409578,0.001,121510.0,121500.0,0.09660713]
[1759859409814,0.23468,121510.0,121500.0,0.26121618]
[1759859409999,0.23464,121510.0,121500.0,0.26121618]
[1759859410205,0.3992355,121510.0,121500.0,0.05699713]
[1759859410331,0.3992355,121510.0,121500.0,0.01212713]
[1759859410543,0.3992355,121510.0,121500.0,0.03387713]
[1759859410749,0.3992355,121510.0,121500.0,0.19848618]
[1759859410995,0.23464,121510.0,121500.0,0.19848618]
[1759859411173,0.3992355,121510.0,121500.0,0.01212713]
[1759859411368,0.1655955,121510.0,121500.0,0.01212713]
[1759859411570,0.3992355,121510.0,121500.0,0.17673618]
[1759859411774,0.23464,121510.0,121500.0,0.19848618]
[1759859412027,0.3992355,121510.0,121500.0,0.19848618]
[1759859412269,0.3992355,121510.0,121500.0,0.03387713]
[1759859412464,0.3992355,121510.0,121500.0,0.01212713]
[1759859412688,1.46174678,121510.0,121500.0,0.01212713]
[1759859412948,2.09570132,121510.0,121500.0,0.01212713]
[1759859414110,2.09470132,121510.0,121500.0,0.00512713]
[1759859414294,1.86506132,121510.0,121500.0,0.00612713]
[1759859414528,2.18446132,121510.0,121500.0,0.00612713]
[1759859414755,0.64658668,121510.0,121500.0,0.00612713]
[1759859414976,0.96594668,121510.0,121500.0,0.00612713]
[1759859415192,1.305184,121510.0,121500.0,0.00612713]
[1759859415432,1.624544,121510.0,121500.0,0.00612713]
[1759859415613,2.23378132,121510.0,121500.0,0.00612713]
[1759859417481,4.48704399,121510.0,121500.0,0.00612713]
[1759859417649,4.19716667,121510.0,121500.0,0.00612713]
[1759859417851,3.78386967,121510.0,121500.0,0.00612713]
[1759859418056,3.82739867,121510.0,121500.0,0.00612713]
[1759859418261,3.68821167,121510.0,121500.0,0.00612713]
[1759859418473,3.77377167,121510.0,121500.0,0.00612713]
[1759859419780,3.77376877,121510.0,121500.0,0.00612713]
[1759859421558,3.87376875,121510.0,121500.0,0.00612713]
[1759859422306,4.49100607,121510.0,121500.0,0.00612713]
[1759859422723,4.49100607,121510.0,121470.0,0.06619503]
[1759859422724,0.53478805,121480.0,121460.0,0.0004]
[1759859422943,0.53478805,121480.0,121460.0,0.00055103]
[1759859422944,2.0701983,121470.0,121460.0,0.00055103]
[1759859423380,2.09492404,121470.0,121460.0,0.00055103]
[1759859423819,2.09492404,121470.0,121460.0,0.00755103]
[1759859423820,2.14428404,121470.0,121460.0,0.00755103]
[1759859424030,2.14428404,121470.0,121460.0,0.00055103]
[1759859424698,1.92574303,121470.0,121460.0,0.00055103]
[1759859424911,2.24622303,121470.0,121460.0,0.00355103]
[1759859425121,2.20031035,121470.0,121460.0,0.00355103]
[1759859425330,2.20031035,121470.0,121460.0,0.00055103]
[1759859425533,2.20431035,121470.0,121460.0,0.00155103]
[1759859425980,2.20331035,121470.0,121460.0,0.00155103]
[1759859426191,0.98138839,121470.0,121460.0,0.00155103]
[1759859426393,2.20631035,121470.0,121460.0,0.00155103]
[1759859427014,0.98438839,121470.0,121460.0,0.00155103]
[1759859427240,2.20631035,121470.0,121460.0,0.00155103]
[1759859427445,3.21465435,121470.0,121460.0,0.00155103]
[1759859428492,3.22265435,121470.0,121460.0,0.00360739]
[1759859428937,3.22261435,121470.0,121460.0,0.00360739]
[1759859429694,3.22269435,121470.0,121460.0,0.00360739]
[1759859430515,5.43018633,121470.0,121460.0,0.00360739]
[1759859430800,0.21981514,121460.0,121450.0,0.0005]
[1759859431010,3.47802318,121460.0,121450.0,0.00055036]
[1759859431202,3.92134644,121460.0,121450.0,0.00055036]
[1759859431368,4.26134644,121460.0,121450.0,0.00055036]
[1759859431577,4.26093687,121460.0,121450.0,0.00055036]
[1759859431809,6.91856185,121460.0,121450.0,0.00055036]
[1759859431985,6.48096885,121460.0,121450.0,0.00155036]
[1759859432168,6.47953085,121460.0,121450.0,0.00155036]